Workbook

Sheet ESTIMATE
C1: PROJECT: HOWARD KNOB | K1: Web: http://sigmaestimations.com Email: info@sigmaestimations.com Phone: (832)-603-4694
C3: ADDRESS: 604 HOWARDS KNOB RD., BOONE, NC 28607
A5: ITEM # | B5: DWG # | C5: CSI #/SUB DETAIL | D5: DESCRIPTION | E5: QTY. | F5: WASTE | G5: QTY. W/ WASTE | H5: UNIT | I5: UNIT LABOR | J5: UNIT MATERIAL | K5: TOTAL UNIT COST | L5: TOTAL COST | M5: TRADE COST
C6: 010000 | D6: DIVISION 01 — GENERAL REQUIREMENTS
A7: =IF(H7<>"",1+MAX(A1:A6),"") -> 1 | D7: Submittal Procedures | E7: 1 | F7: 0% | G7: =E7+(E7*F7) -> 1 | H7: LS | I7: 0 | J7: 0 | K7: =IF(H7<>"",I7+J7,"") -> 0 | L7: =G7*K7 -> 0
A8: =IF(H8<>"",1+MAX(A2:A7),"") -> 2 | D8: Temporary Facilities and Controls | E8: 1 | F8: 0% | G8: 1 | H8: LS | I8: 0 | J8: 0 | K8: 0 | L8: =G8*K8 -> 0
A9: 3 | D9: Closeout Procedures | E9: 1 | F9: 0% | G9: 1 | H9: LS | I9: 0 | J9: 0 | K9: =IF(H9<>"",I9+J9,"") -> 0 | L9: =G9*K9 -> 0
A10: 4 | D10: Payment Procedures | E10: 1 | F10: 0% | G10: 1 | H10: LS | I10: 0 | J10: 0 | K10: 0 | L10: =G10*K10 -> 0
A11: 5 | D11: Contract Modification Procedures | E11: 1 | F11: 0% | G11: 1 | H11: LS | I11: 0 | J11: 0 | K11: 0 | L11: 0
A12: =IF(H12<>"",1+MAX(A1:A11),"") -> 6 | D12: Maintenance & Traffic Protection | E12: 1 | F12: 0% | G12: 1 | H12: LS | I12: 0 | J12: 0 | K12: =IF(H12<>"",I12+J12,"") -> 0 | L12: =G12*K12 -> 0
A13: =IF(H13<>"",1+MAX(A2:A12),"") ->  | D13: SUBTOTAL | I13: =IF(H13<>"",0.4*K13,"") ->  | J13: =IF(H13<>"",K13-I13,"") ->  | M13: =SUM(L7:L12) -> 0
C14: 310000 | D14: DIVISION 31 — EARTH WORK
D16: CLEARING & GRABING
A17: 7 | B17: C2 | D17: Clearing & Grabbing | E17: 36720 | F17: 5% | G17: =E17+(E17*F17) -> 38556 | H17: SF | I17: $2.20 | J17: 0 | K17: =IF(H17<>"",I17+J17,"") -> $2.20 | L17: =G17*K17 -> $84,823
D19: LAND GRADING
A20: 8 | B20: C2 | D20: Cut for mass grading as per proposed & existing contours | E20: 721 | F20: 5% | G20: =E20+(E20*F20) -> 757 | H20: CY | I20: $35.00 | J20: 0 | K20: =IF(H20<>"",I20+J20,"") -> $35.00 | L20: =G20*K20 -> $26,481
A21: 9 | B21: C2 | D21: Fill for mass grading as per proposed & existing contours | E21: 1456 | F21: 5% | G21: 1529 | H21: CY | I21: $20.00 | J21: 0 | K21: $20.00 | L21: $30,581
A23: 10 | B23: C2 | D23: Loads to be Imported (14 CY / Load) | E23: 73 | F23: 0% | G23: 73 | H23: LOADS | I23: $168.00 | J23: $252.00 | K23: $420.00 | L23: $30,821
D25: SUBTOTAL | M25: =SUM(L15:L24) -> $172,706
C26: 320000 | D26: DIVISION 32 — EXTERIOR IMPROVEMENTS
D28: SIDEWALK
A29: 11 | B29: C2 | C29: 3/C3 | D29: 6" Thick 300 PSI Concrete Sidewalk | E29: 3993 | F29: 5% | G29: =E29+(E29*F29) -> 4193 | H29: SF | I29: $2.60 | J29: $3.90 | K29: =IF(H29<>"",I29+J29,"") -> $6.50 | L29: =G29*K29 -> $27,252
A30: 12 | B30: C2 | C30: 3/C3 | D30: 6" Thick Aggregate Base | E30: =3993*0.5/27 -> 74 | F30: 5% | G30: =E30+(E30*F30) -> 78 | H30: CY | I30: $12.00 | J30: $18.00 | K30: =IF(H30<>"",I30+J30,"") -> $30.00 | L30: =G30*K30 -> $2,329
A31: 13 | B31: C2 | C31: 3/C3 | D31: 1/2" Expansion Joint | E31: 845 | F31: 5% | G31: 887 | H31: LF | I31: $1.40 | J31: $2.10 | K31: $3.50 | L31: $3,105
A32: 14 | B32: C2 | C32: 3/C3 | D32: Construction Joint | E32: =470/5*8 -> 752 | F32: 5% | G32: 790 | H32: LF | I32: $1.00 | J32: $1.49 | K32: $2.49 | L32: $1,966
D34: CONCRETE STAIR
A35: 15 | B35: C2 | C35: 8/C3 | D35: 4'-0" Wide Concrete Stair 4 Treads 3.88SF | E35: =2*3.88*4/27 -> 1 | F35: 5% | G35: =E35+(E35*F35) -> 1 | H35: CY | I35: $105.00 | J35: $245.00 | K35: =IF(H35<>"",I35+J35,"") -> $350.00 | L35: =G35*K35 -> $422
A36: 16 | B36: C2 | C36: 8/C3 | D36: Reinforcement: 4#4 Cont. Rebar @ Nosing | E36: =2*4*4*0.668 -> 21 | F36: 5% | G36: 22 | H36: LBS | I36: $0.72 | J36: $1.08 | K36: $1.80 | L36: $40
A37: 17 | B37: C2 | C37: 8/C3 | D37: 2#5 Cont. Bar @ Top Treads | E37: =2*2*4*1.043 -> 17 | F37: 5% | G37: =E37+(E37*F37) -> 18 | H37: LBS | I37: $0.72 | J37: $1.08 | K37: =IF(H37<>"",I37+J37,"") -> $1.80 | L37: =G37*K37 -> $32
A38: 18 | B38: C2 | C38: 8/C3 | D38: 2#5 Cont. Bar @ Base Tread | E38: =2*2*4*1.043 -> 17 | F38: 5% | G38: 18 | H38: LBS | I38: $0.72 | J38: $1.08 | K38: $1.80 | L38: $32
A39: 19 | B39: C2 | C39: 8/C3 | D39: #4 Bar @ Each Tread | E39: =2*3*4*0.668 -> 16 | F39: 5% | G39: 17 | H39: LBS | I39: $0.72 | J39: $1.08 | K39: $1.80 | L39: $30
A40: 20 | B40: C2 | C40: 8/C3 | D40: #4 Bar Diagonal Bar | E40: =2*4*4.4*0.668 -> 24 | F40: 5% | G40: 25 | H40: LBS | I40: $0.72 | J40: $1.08 | K40: $1.80 | L40: $44
A41: 21 | B41: C2 | C41: 8/C3 | D41: #4 Bars @ 16" Length Dowel Bar | E41: =2*4*1.33*0.668 -> 7 | F41: 5% | G41: 7 | H41: LBS | I41: $0.72 | J41: $1.08 | K41: $1.80 | L41: $13
A42: 22 | B42: C2 | C42: 8/C3 | D42: Excavation | E42: =2*0.668*0.75*4/27 -> 0 | F42: 5% | G42: =E42+(E42*F42) -> 0 | H42: CY | I42: $35.00 | J42: 0 | K42: =IF(H42<>"",I42+J42,"") -> $35.00 | L42: =G42*K42 -> $5
D44: CONCRETE PAVEMENT
A45: 23 | B45: C2 | C45: 2/C3 | D45: 7" Thick 4000PSI Concrete Pavement W/ 6x6 10/10 Wire Mesh | E45: 621 | F45: 5% | G45: =E45+(E45*F45) -> 652 | H45: SF | I45: $3.00 | J45: $4.50 | K45: =IF(H45<>"",I45+J45,"") -> $7.50 | L45: =G45*K45 -> $4,890
A46: 24 | B46: C2 | C46: 2/C3 | D46: 8" Thick Compacted Aggregate Base Course | E46: =621*0.668/27 -> 15 | F46: 5% | G46: 16 | H46: CY | I46: $12.00 | J46: $18.00 | K46: $30.00 | L46: $484
D48: CONCRETE CURB
A49: 25 | B49: C2 | C49: 4/L3.0 | D49: Concrete Curb Size: 1'0''x1'0'' | E49: =40*1*1/27 -> 1 | F49: 5% | G49: =E49+(E49*F49) -> 2 | H49: CY | I49: $105.00 | J49: $245.00 | K49: =IF(H49<>"",I49+J49,"") -> $350.00 | L49: =G49*K49 -> $544
A50: 26 | B50: C2 | C50: 4/L3.0 | D50: 4" Thick Aggregate Base Width 12" | E50: =40*1*0.33/27 -> 0 | F50: 5% | G50: 1 | H50: CY | I50: $12.00 | J50: $18.00 | K50: $30.00 | L50: $15
D52: TRASH ENCLOSURE
A53: 27 | B53: C2 | C53: 4/L4.2 | D53: 4" Thick Concrete Slab | E53: 90 | F53: 5% | G53: =E53+(E53*F53) -> 95 | H53: SF | I53: $1.80 | J53: $2.70 | K53: =IF(H53<>"",I53+J53,"") -> $4.50 | L53: =G53*K53 -> $425
A54: 28 | B54: C2 | C54: 4/L4.2 | D54: Turn Down Concrete Slab | E54: =25*3/27 -> 3 | F54: 5% | G54: 3 | H54: CY | I54: $105.00 | J54: $245.00 | K54: $350.00 | L54: $1,021
A55: 29 | B55: C2 | C55: 4/L4.2 | D55: Reinforcement: 2#4 Cont. Bar | E55: =2*25*0.668 -> 33 | F55: 5% | G55: 35 | H55: LBS | I55: $0.72 | J55: $1.08 | K55: $1.80 | L55: $63
A56: 30 | B56: C2 | C56: 4/L4.2 | D56: #4 @ 16" O.C Short Bar | E56: =25/1.33*1*0.668 -> 13 | F56: 5% | G56: 13 | H56: LBS | I56: $0.72 | J56: $1.08 | K56: $1.80 | L56: $24
A57: 31 | B57: C2 | C57: 4/L4.2 | D57: #4 Vertical Bar @ Each Post Base | E57: =5*8*2*0.668 -> 53 | F57: 5% | G57: 56 | H57: LBS | I57: $0.72 | J57: $1.08 | K57: $1.80 | L57: $101
A58: 32 | B58: C2 | C58: 4/L4.2 | D58: #4 Ties @ 3" O.C @ Each Post Base | E58: =5*7*4.7*0.668 -> 110 | F58: 5% | G58: 115 | H58: LBS | I58: $0.72 | J58: $1.08 | K58: $1.80 | L58: $208
A59: 33 | B59: C2 | C59: 4/L4.2 | D59: #4 Ties @ 3" O.C @ Each Post Base | E59: =5*7*3.5*0.668 -> 82 | F59: 5% | G59: 86 | H59: LBS | I59: $0.72 | J59: $1.08 | K59: $1.80 | L59: $155
A60: 34 | B60: C2 | C60: 4/L4.2 | D60: Formwork | E60: =1.83*25 -> 46 | F60: 5% | G60: =E60+(E60*F60) -> 48 | H60: SF | I60: $1.80 | J60: $2.70 | K60: =IF(H60<>"",I60+J60,"") -> $4.50 | L60: =G60*K60 -> $216
A62: =IF(H62<>"",1+MAX(A61:A61),"") ->  | D62: SUBTOTAL | M62: =SUM(L27:L61) -> $43,419
A63: SUB TOTAL | L63: =SUM(L6:L61) -> $216,125 | M63: =SUM(M6:M62) -> $216,125
A64: TAX | K64: 8.5% | M64: =M63*K64 -> $18,371
A65: BID BOND | K65: 1.5% | M65: =M63*K65 -> $3,242
A66: PROFIT | K66: 10% | M66: =M63*K66 -> $21,613
A67: CONTIGENCIES | K67: 5% | M67: =M63*K67 -> $10,806
A68: TOTAL BASEBID | M68: =SUM(M63:M67) -> $270,157
A69: General Exclusions: Any kind of controlled inspection, contaminated material, architect and engineering fees, security, building charges, signage, sign off, protection of adjoining building (if any), any work not mentioned above.
A70: General Notes: The prices used are taken from RS Means online i.e. the standard pricing, the company is not responsible for any kind of variations in the prices. So it is preferred to review the prices.

Sheet UJ (hidden)
C2: PROJECT: | D2: 625 PARK AVE PHASE 1B
C3: ADDRESS: | D3: 625 PARK AVENUE,
D4: NEW YORK, NY-10065.
H6: DATE | I6: =TODAY() -> 2026-07-28
A7: ITEM # | B7: CSI SEC. | C7: DESCRIPTION | D7: QTY. | E7: WASTE | F7: QTY. W/ WASTE | G7: UNIT | H7: UNIT COST | I7: TRADE COST | L7: Single side areas
C8: SCOPE OF WORK | L8: Dry | M8: Wet
A9: 1 | B9: 09 29 | C9: 2 layered 5/8" thick USG fiberock brand panels for walls and ceilings. | D9: 11,635 | E9: 10% | F9: =D9*(1+E9) -> 12,799 | G9: sf | H9: $4.0 | I9: =H9*F9 -> $51,194 | J9: Type 1+Type 4+Type 6+ceiling | K9: Type 1 | L9: =2520-80 -> 2440 | M9: 280 | N9: =(2440*2+290*2+2345+3830) -> 11635
A10: 2 | B10: 09 29 | C10: 2 layerd 5/8" thick USG fiberock aqua tough brand panels for wall and ceilings in wet areas. | D10: 1,185 | E10: 10% | F10: =D10*(1+E10) -> 1,304 | G10: sf | H10: $4.5 | I10: =H10*F10 -> $5,866 | J10: Type 1+Type 4+Type 6+wet ceiling | K10: Type 2 | L10: =210-80 -> 130 | M10: 80 | N10: =(280*2+325+300) -> 1185
A11: 3 | B11: 09 29 | C11: 2 layered 2 HR rated 5/8" thick USG fiberock brand panels for walls. | D11: 260 | E11: 10% | F11: =D11*(1+E11) -> 286 | G11: sf | H11: $4.5 | I11: =H11*F11 -> $1,287 | J11: Type 2 | K11: Type 3 | N11: =130*2 -> 260
A12: 4 | B12: 09 29 | C12: 2 layered 2 HR rated 5/8" thick USG fiberock aqua tough brand panels for walls in wet areas. | D12: 160 | E12: 10% | F12: 176 | G12: sf | H12: $5.0 | I12: =H12*F12 -> $880 | J12: Type 2 | K12: Type 4 | L12: 290 | N12: =80*2 -> 160
A13: 5 | B13: 09 29 | C13: 3 layered 3 HR rated 5/8" thick USG fiberock brand panels for walls. | D13: 300 | E13: 10% | F13: 330 | G13: sf | H13: $4.0 | I13: =H13*F13 -> $1,320 | J13: Type 7 | K13: Type 5 | L13: 1200 | N13: =150*2 -> 300
A14: 6 | B14: 09 26 | C14: 3/32" thick gypsum veneer plaster skim coat. | D14: 14,740 | E14: 10% | F14: 16,214 | G14: sf | H14: $4.0 | I14: =H14*F14 -> $64,856 | J14: Type 1+Type 2+ Type 4+Type 5+Type 6 +Type 7 | K14: Type 6 | L14: =2670-325 -> 2345 | M14: 325 | N14: =SUM(N9:N13)+L13 -> 14740 | O14: =SUM(L9:M10)*2+L13+SUM(L14:M14)+L15*2+SUM(L17:M17)+L12*2 -> 14740 | P14: =N14-O14 -> 0
A15: 7 | B15: 09 22 16 | C15: 3-5/8" steel studs 20 GA @ 16" O.C. | D15: 5,750 | E15: 10% | F15: 6,325 | G15: sf | H15: $2.5 | I15: =H15*F15 -> $15,813 | J15: Type 1+Type 2+Type 6+Type 7 | K15: Type 7 | L15: 150 | N15: =SUM(L9:M10)+SUM(L14:M15) -> 5750
A16: 8 | B16: 10 22 16 | C16: 1-5/8" steel studs 20 GA @ 12" O.C. | D16: 290 | E16: 10% | F16: 319 | G16: sf | H16: $2.0 | I16: $638 | J16: Type 4 | K16: Type 8 | L16: 20
A17: 8 | B17: 09 22 26 | C17: Ceiling suspension system. | D17: 4,130 | E17: 10% | F17: 4,543 | G17: sf | H17: $3.0 | I17: =H17*F17 -> $13,629 | K17: Ceiling | L17: 3830 | M17: 300 | N17: =SUM(L17:M17) -> 4130
A18: 9 | B18: 07 21 16 | C18: Batt Insulation. | D18: 5,600 | E18: 5% | F18: 5,880 | G18: sf | H18: $2.0 | I18: =H18*F18 -> $11,760 | J18: Type 1+Type 2+ Type 6 | N18: =SUM(L9:M10)+SUM(L14:M14) -> 5600
A19: 10 | B19: 07 21 16 | C19: Batt Insulation type SAFB. | D19: 150 | E19: 10% | F19: 165 | G19: sf | H19: $2.2 | I19: =H19*F19 -> $363 | J19: Type 7 | N19: 150
A21: SUB TOTAL | I21: =SUM(I9:I19) -> $167,605
A22: INSURANCE (3%) | I22: =(3/100)*I21 -> $5,028
A23: TOTAL BASE BID | I23: =SUM(I21:I22) -> $172,633
C25: Exclusions
B26: 1 | C26: Mouldings
B27: 2 | C27: Patch work
B28: 3 | C28: Fixtures
B29: 4 | C29: Electrical work
B30: 5 | C30: Stone and/or tile work
B31: 6 | C31: Wall type 8 [no details on provided on the drawing]

Sheet DETAIL (2) (hidden)
B2: PROJECT: | C2: 625 PARK AVE PHASE 1B
B3: ADDRESS: | C3: 625 PARK AVENUE
C4: NEW YORK, NY 10065
E6: DATE | F6: =TODAY() -> 2026-07-28
A7: ITEM # | B7: DESCRIPTION | C7: UNIT COST | D7: QTY. | E7: UNIT | F7: TRADE COST
B8: SCOPE OF WORK
A9: 1 | B9: 5/8" 2 layered USG fiberock brand panels. | D9: =((2358+277+2077)-644)+3830 -> 7,898 | E9: sf | F9: =C9*D9 -> 0 | G9: Type 1+Type 4+Type 6+ceiling
A10: 2 | B10: 5/8" 2 layered USG fiberock aqua tough brand panels. (Wet area). | D10: =644+292 -> 936 | E10: sf | F10: =C10*D10 -> 0 | G10: Type 1+Type 4+Type 6+wet ceiling | I10: Height 9'6"
A11: 3 | B11: 2 HR rated 5/8" 2 layered USG fiberock brand panels. | D11: =206-78 -> 128 | E11: sf | F11: 0 | G11: Type 2 | I11: For Doors & Cabinets 1'3"
A12: 4 | B12: 2 HR rated 5/8" 2 layered USG fiberock aqua tough brand panels. (Wet area). | D12: 78 | E12: sf | F12: 0 | G12: Type 2
A13: 5 | B13: 3 HR rated 5/8" 3 layered USG fiberock brand panels. | D13: 148 | E13: sf | F13: 0 | G13: Type 7
A14: 6 | B14: 3/32" thick gypsum veneer plaster skim coat. | D14: =2538+206+277+1343+2077+148 -> 6,589 | E14: sf | F14: 0 | G14: Type 1+Type 2+ Type 4+Type 5+Type 6 +Type 7
A15: 7 | B15: 3 5/8" steel studs 20 GA @ 16" O.C. | D15: 4,968 | E15: sf | F15: 0 | G15: Type 1+Type 2+Type 6+Type 7
A16: 8 | B16: 1 5/8" steel studs 20 GA @ 12" O.C. | D16: 277 | E16: sf | F16: 0 | G16: Type 4
A17: 9 | B17: Batt sound Insulation. | D17: =2538+206+2077 -> 4,821 | E17: sf | F17: 0 | G17: Type 1+Type 2+ Type 6
A18: 10 | B18: Batt sound Insulation type SAFB. | D18: 148 | E18: sf | F18: 0 | G18: Type 7 | H18: QTY Details
H19: Type 1 | I19: 2538 | J19: 2520
A20: TOTAL | F20: =SUM(F9:F18) -> 0 | H20: Type 2 | I20: 205 | J20: 206
B21: Exclusions | H21: Type 3 | I21: N/A
A22: 1 | B22: Mouldings | H22: Type 4 | I22: 277 | J22: 290
A23: 2 | B23: Patch work | H23: Type 5 | I23: 1342 | J23: 1200
A24: 3 | B24: Fixtures | H24: Type 6 | I24: 2077 | J24: 2670
A25: 4 | B25: Electrical work | H25: Type 7 | I25: 148 | J25: 150
A26: 5 | B26: Stone and/or tile work | H26: Type 8 | I26: 22 | J26: 20 | K26: No details given
A27: 6 | H27: Ceiling | I27: 3830
H28: Wet Ceiling | I28: 292
B31: DETAILS
B32: Type 1- Interior Partition | G32: Type 2- 2HR rated Interior Partition | H32: Type
B33: 2 layers 5/8' USG fiberock brand panels (Fiberock aqua tough brand at all wet areas) Glue second layer, finished with 3-32" thick gypsum veneer plaster skim coat. 3 5/8" Stl studs 20 GA @16" O.C with Batt insulation. 2 layers 5/8" USG fiberock brand panels(Fiberock aqua tough brand at all wet areas finished 3-32" thick gypsum veneer plaster skim coat | G33: 2 layers 5/8' USG fiberock brand panels (Fiberock aqua tough brand at all wet areas) Glue second layer, finished with 3-32" thick gypsum veneer plaster skim coat. 3 5/8" Stl studs 20 GA @16" O.C with Batt insulation. 2 layers 5/8" USG fiberock brand panels(Fiberock aqua tough brand at all wet areas finished 3-32" thick gypsum veneer plaster skim coat
B35: TYPE 3 Interior partition at chase | G35: TYPE 4 Pocket door partition
B36: 2 layer 5/8" USG fiberock brand panels ( Fiberock aqua tough brand at all wet areas ) Glue second layer fill batt insulation, finished with 3/32" thick gypsum veneer plaster skim coat. 20 Ga 2-1/2" mtl studs @ 16 O.C. with batt insulation. Pipe chase space. 2 layers 5/8" USG fiberock brand panels (Fiberock aqua tough brand at all wet areas finished with 3/32" thick gypsum veneer plaster skim coat. | G36: 2 Layers 5/8" USG fiberock brand panels (Fiberock Aqua tough brand at all wet areas) Glue second layer, Finished with 3/32" thick gypsum veneer plaster skim coat. 1 5/8" 20 Ga stl studs @12 O.C. 2 layer 5/8" USG fiberock brand panels (fiberock aqua tough brand at wet areas) finished with 3/32" thick gypsum veneer plaster skim coat.
B38: TYPE 5 Existing wall skim coat | G38: TYPE 6 EXISTING WALL- Furring
B39: Apply 3/32" Thick gypsum veneer skim coat. Fill and smooth all imperfections | G39: 3 5/8" 20 Ga stl studs @ 16 O.C. 2 layers 5/8" USG fiberock brand panels dimensions from exterior wall to be varified with architect. Fill with Batt insulation, Finished with 3/32" Thick Gypsum veneer plaster skim coat
B40: TYPE 7 Interior Partition- 3 Hr rated
B41: 3 layer 5/8" USG fiberock brand panels, glue third layer finished with 3/32" thick gypsum veneer plaster skim coat. 3 5/8" stl studs 20 GA @16"O.C. Batt insulation Type SAFB. 3 layer 5/8" USG fiberock brand panels, glue third layer finished with 3-32" thick gypsum veneer plaster skim coat
